[Event "Early-Titled-Tuesday-Blitz-February-13-2024"]
[Site "Chess.com"]
[Date "2024.02.13"]
[Round "10"]
[White "jcibarra"]
[Black "HamedWafa4"]
[Result "1-0"]
[WhiteElo "2948"]
[BlackElo "2742"]
[TimeControl "180+1"]
[EndTime "9:58:56 PST"]
[Termination "jcibarra won by checkmate"]

1. e4 {[%clk 0:03:00.9]} 1... c5 {[%clk 0:02:55.6]} 2. Nf3 {[%clk 0:02:59.2]}
2... a6 {[%clk 0:02:55.6]} 3. c4 {[%clk 0:02:58.9]} 3... Nc6 {[%clk 0:02:55.3]}
4. d4 {[%clk 0:02:59.2]} 4... cxd4 {[%clk 0:02:55.6]} 5. Nxd4 {[%clk 0:03:00.1]}
5... Nf6 {[%clk 0:02:56.1]} 6. Nc3 {[%clk 0:03:00.7]} 6... e5 {[%clk 0:02:56.1]}
7. Nf5 {[%clk 0:03:00.9]} 7... d6 {[%clk 0:02:47.2]} 8. Be3 {[%clk 0:02:47.4]}
8... g6 {[%clk 0:02:45.3]} 9. Nh6 {[%clk 0:02:46.8]} 9... Nh5 {[%clk 0:02:22.3]}
10. Nd5 {[%clk 0:02:27.3]} 10... Nd4 {[%clk 0:02:12.7]} 11. Be2 {[%clk
0:02:10.7]} 11... Be6 {[%clk 0:01:54.5]} 12. Bxh5 {[%clk 0:02:04.9]} 12... gxh5
{[%clk 0:01:54.6]} 13. Bxd4 {[%clk 0:01:28.5]} 13... Bxd5 {[%clk 0:01:48.5]} 14.
Qxh5 {[%clk 0:01:22.4]} 14... Bxh6 {[%clk 0:01:43.7]} 15. exd5 {[%clk
0:01:11.9]} 15... exd4 {[%clk 0:01:29.5]} 16. Qxh6 {[%clk 0:01:11.7]} 16... Qa5+
{[%clk 0:01:30.1]} 17. Qd2 {[%clk 0:01:09.8]} 17... Qc5 {[%clk 0:01:28.5]} 18.
Rc1 {[%clk 0:01:04.5]} 18... O-O-O {[%clk 0:00:54.4]} 19. O-O {[%clk 0:01:03.7]}
19... Rde8 {[%clk 0:00:52.3]} 20. b4 {[%clk 0:01:03.6]} 20... Qb6 {[%clk
0:00:51.9]} 21. c5 {[%clk 0:01:01.9]} 21... Qb5 {[%clk 0:00:52.3]} 22. Qxd4
{[%clk 0:00:57.9]} 22... Rhg8 {[%clk 0:00:52.3]} 23. c6 {[%clk 0:00:44.4]} 23...
b6 {[%clk 0:00:46.8]} 24. a4 {[%clk 0:00:42.1]} 24... Qe2 {[%clk 0:00:45]} 25.
g3 {[%clk 0:00:33.7]} 25... Kc7 {[%clk 0:00:40.1]} 26. Rfe1 {[%clk 0:00:30.2]}
26... Qxe1+ {[%clk 0:00:40.1]} 27. Rxe1 {[%clk 0:00:30.2]} 27... Rxe1+ {[%clk
0:00:41]} 28. Kg2 {[%clk 0:00:30.9]} 28... Rge8 {[%clk 0:00:33.8]} 29. a5 {[%clk
0:00:30.3]} 29... Rb8 {[%clk 0:00:30.6]} 30. Qf6 {[%clk 0:00:27.9]} 30... bxa5
{[%clk 0:00:26.3]} 31. bxa5 {[%clk 0:00:22.8]} 31... Rbe8 {[%clk 0:00:23.4]} 32.
Qxf7+ {[%clk 0:00:21.5]} 32... R8e7 {[%clk 0:00:23.9]} 33. Qg8 {[%clk
0:00:19.9]} 33... R1e5 {[%clk 0:00:23]} 34. Qa8 {[%clk 0:00:19.1]} 34... Rxd5
{[%clk 0:00:15.1]} 35. Qb7+ {[%clk 0:00:17.8]} 35... Kd8 {[%clk 0:00:14.7]} 36.
Qb8# {[%clk 0:00:18.4]} 1-0

[Event "Early-Titled-Tuesday-Blitz-February-13-2024"]
[Site "Chess.com"]
[Date "2024.02.13"]
[Round "10"]
[White "Nellichka"]
[Black "Ducke13"]
[Result "0-1"]
[WhiteElo "2082"]
[BlackElo "2327"]
[TimeControl "180+1"]
[EndTime "9:58:57 PST"]
[Termination "Ducke13 won by checkmate"]

1. d4 {[%clk 0:01:07.6]} 1... Nf6 {[%clk 0:02:55.3]} 2. c4 {[%clk 0:01:06.7]}
2... g6 {[%clk 0:02:55.8]} 3. h4 {[%clk 0:01:05.7]} 3... Bg7 {[%clk 0:02:53.3]}
4. Nc3 {[%clk 0:01:04.7]} 4... d5 {[%clk 0:02:52.4]} 5. cxd5 {[%clk 0:01:02]}
5... Nxd5 {[%clk 0:02:51.6]} 6. h5 {[%clk 0:01:01.5]} 6... Nxc3 {[%clk
0:02:48.8]} 7. bxc3 {[%clk 0:01:00.7]} 7... c5 {[%clk 0:02:48.9]} 8. h6 {[%clk
0:00:56.7]} 8... Bf6 {[%clk 0:02:48.5]} 9. Nf3 {[%clk 0:00:55.3]} 9... Nc6
{[%clk 0:02:47.9]} 10. e3 {[%clk 0:00:46.7]} 10... O-O {[%clk 0:02:47.5]} 11.
Bc4 {[%clk 0:00:46]} 11... Bg4 {[%clk 0:02:33.4]} 12. O-O {[%clk 0:00:44.5]}
12... Bg5 {[%clk 0:02:21.1]} 13. e4 {[%clk 0:00:26.4]} 13... Bxc1 {[%clk
0:02:14.1]} 14. Rxc1 {[%clk 0:00:25.4]} 14... cxd4 {[%clk 0:02:12.7]} 15. cxd4
{[%clk 0:00:21.5]} 15... Bxf3 {[%clk 0:02:10.1]} 16. Qxf3 {[%clk 0:00:20.1]}
16... Nxd4 {[%clk 0:02:00.8]} 17. Qg3 {[%clk 0:00:19.2]} 17... Qb8 {[%clk
0:01:55.4]} 18. e5 {[%clk 0:00:18.5]} 18... b5 {[%clk 0:01:44.5]} 19. Bd3 {[%clk
0:00:17.1]} 19... Qb6 {[%clk 0:01:28.3]} 20. Kh1 {[%clk 0:00:15.8]} 20... Rad8
{[%clk 0:01:19.5]} 21. f4 {[%clk 0:00:15.9]} 21... Kh8 {[%clk 0:01:06.1]} 22. f5
{[%clk 0:00:15.4]} 22... g5 {[%clk 0:00:12.5]} 23. Qxg5 {[%clk 0:00:14.3]} 23...
Rg8 {[%clk 0:00:11.3]} 24. Qxe7 {[%clk 0:00:14]} 24... Qxh6+ {[%clk 0:00:10.6]}
25. Kg1 {[%clk 0:00:12.8]} 25... Nf3+ {[%clk 0:00:08.7]} 26. Kf2 {[%clk
0:00:11]} 26... Rxd3 {[%clk 0:00:07.9]} 27. gxf3 {[%clk 0:00:10.1]} 27... Rd2+
{[%clk 0:00:07.4]} 28. Ke1 {[%clk 0:00:08.6]} 28... Qe3# {[%clk 0:00:08]} 0-1

[Event "Early-Titled-Tuesday-Blitz-February-13-2024"]
[Site "Chess.com"]
[Date "2024.02.13"]
[Round "10"]
[White "Sina_Movahed"]
[Black "jefferyx"]
[Result "1/2-1/2"]
[WhiteElo "3016"]
[BlackElo "3036"]
[TimeControl "180+1"]
[EndTime "9:59:00 PST"]
[Termination "Game drawn by agreement"]

1. e4 {[%clk 0:03:00.9]} 1... e5 {[%clk 0:03:00.2]} 2. Nf3 {[%clk 0:02:59.8]}
2... Nf6 {[%clk 0:03:00.6]} 3. d4 {[%clk 0:02:51.7]} 3... Nxe4 {[%clk
0:03:00.6]} 4. Bd3 {[%clk 0:02:49.7]} 4... d5 {[%clk 0:03:00.4]} 5. Nxe5 {[%clk
0:02:50.3]} 5... Nd7 {[%clk 0:03:00.6]} 6. Nc3 {[%clk 0:02:47.9]} 6... Nxe5
{[%clk 0:02:59.9]} 7. dxe5 {[%clk 0:02:48.8]} 7... Nc5 {[%clk 0:03:00.6]} 8.
Nxd5 {[%clk 0:02:35.9]} 8... Nxd3+ {[%clk 0:03:00.3]} 9. Qxd3 {[%clk 0:02:35.5]}
9... Be6 {[%clk 0:03:00.3]} 10. Nf4 {[%clk 0:02:30.4]} 10... Qxd3 {[%clk
0:02:59.9]} 11. cxd3 {[%clk 0:02:24.6]} 11... Bf5 {[%clk 0:03:00.1]} 12. Be3
{[%clk 0:02:21]} 12... O-O-O {[%clk 0:02:57.7]} 13. d4 {[%clk 0:02:20.8]} 13...
g5 {[%clk 0:02:50.6]} 14. Ne2 {[%clk 0:02:15.3]} 14... Bb4+ {[%clk 0:02:44.1]}
15. Nc3 {[%clk 0:02:08]} 15... c5 {[%clk 0:02:37]} 16. O-O-O {[%clk 0:01:58.5]}
16... cxd4 {[%clk 0:02:31.3]} 17. Bxd4 {[%clk 0:01:46.2]} 17... Bxc3 {[%clk
0:02:22.3]} 18. bxc3 {[%clk 0:01:38.4]} 18... Be6 {[%clk 0:02:21.7]} 19. Bxa7
{[%clk 0:01:32.4]} 19... Bxa2 {[%clk 0:02:17.6]} 20. Bd4 {[%clk 0:01:29.8]}
20... Be6 {[%clk 0:02:17]} 21. Kd2 {[%clk 0:01:29.6]} 21... Kc7 {[%clk
0:02:16.2]} 22. Ke3 {[%clk 0:01:27.4]} 22... Ra8 {[%clk 0:02:15.8]} 23. h4
{[%clk 0:01:24]} 23... g4 {[%clk 0:02:15.3]} 24. Rd2 {[%clk 0:01:19.8]} 24...
Ra6 {[%clk 0:01:54.8]} 25. h5 {[%clk 0:01:17.6]} 25... Rha8 {[%clk 0:01:52.4]}
26. f3 {[%clk 0:01:15.3]} 26... Ra2 {[%clk 0:01:49.2]} 27. Rhd1 {[%clk
0:01:10.4]} 27... Rxd2 {[%clk 0:01:42]} 28. Rxd2 {[%clk 0:01:11.3]} 28... gxf3
{[%clk 0:01:42.7]} 29. gxf3 {[%clk 0:01:10.9]} 29... Ra2 {[%clk 0:01:43.6]} 30.
Rxa2 {[%clk 0:00:38.3]} 30... Bxa2 {[%clk 0:01:44.5]} 31. Kf4 {[%clk 0:00:39.2]}
31... Bd5 {[%clk 0:01:37.5]} 32. Kg4 {[%clk 0:00:39]} 32... Kd7 {[%clk
0:01:29.2]} 33. f4 {[%clk 0:00:38.9]} 33... Be4 {[%clk 0:01:29.4]} 34. f5 {[%clk
0:00:38.2]} 34... Bc2 {[%clk 0:01:28.3]} 35. Kg5 {[%clk 0:00:37]} 35... b5
{[%clk 0:01:12.3]} 36. Kf6 {[%clk 0:00:34.1]} 36... Ke8 {[%clk 0:01:12.5]} 37.
Kg5 {[%clk 0:00:26.1]} 37... Bd3 {[%clk 0:00:59.1]} 38. Bc5 {[%clk 0:00:26.1]}
38... Bc2 {[%clk 0:00:58.9]} 39. Bb4 {[%clk 0:00:25.8]} 39... Bd3 {[%clk
0:00:58.8]} 40. Bd6 {[%clk 0:00:25.9]} 40... Bc2 {[%clk 0:00:59]} 41. Kf6 {[%clk
0:00:23.2]} 41... Bd3 {[%clk 0:00:59.1]} 42. Bc5 {[%clk 0:00:21.3]} 42... Bc2
{[%clk 0:00:59.2]} 43. Be3 {[%clk 0:00:21.7]} 43... Bd3 {[%clk 0:00:58.9]} 44.
Bf4 {[%clk 0:00:21.4]} 44... Bc2 {[%clk 0:00:58.9]} 45. Kg5 {[%clk 0:00:21.5]}
45... Bd3 {[%clk 0:00:58.5]} 46. Bc1 {[%clk 0:00:19.8]} 46... Bc2 {[%clk
0:00:58.6]} 47. Ba3 {[%clk 0:00:19.7]} 47... Bd3 {[%clk 0:00:58.9]} 48. Bb4
{[%clk 0:00:19.8]} 48... Bc2 {[%clk 0:00:59.1]} 49. h6 {[%clk 0:00:18.3]} 49...
Bd3 {[%clk 0:00:58.9]} 50. Kf6 {[%clk 0:00:18.9]} 50... Bc2 {[%clk 0:00:58.9]}
51. e6 {[%clk 0:00:19.4]} 51... fxe6 {[%clk 0:00:59.1]} 52. fxe6 {[%clk
0:00:18.5]} 52... Bd3 {[%clk 0:00:56.1]} 53. Bc5 {[%clk 0:00:18.2]} 53... Bc2
{[%clk 0:00:55.8]} 54. Bb4 {[%clk 0:00:19.1]} 54... Bd3 {[%clk 0:00:56.3]}
1/2-1/2

[Event "Early-Titled-Tuesday-Blitz-February-13-2024"]
[Site "Chess.com"]
[Date "2024.02.13"]
[Round "10"]
[White "Ron_Weasley_Chess"]
[Black "Semetey"]
[Result "0-1"]
[WhiteElo "2457"]
[BlackElo "2637"]
[TimeControl "180+1"]
[EndTime "9:59:04 PST"]
[Termination "Semetey won on time"]

1. Nf3 {[%clk 0:03:00.9]} 1... b6 {[%clk 0:02:56]} 2. g3 {[%clk 0:03:00.8]} 2...
Bb7 {[%clk 0:02:55.2]} 3. Bg2 {[%clk 0:03:00.9]} 3... g6 {[%clk 0:02:56.1]} 4.
O-O {[%clk 0:03:00.2]} 4... Bg7 {[%clk 0:02:49.3]} 5. c4 {[%clk 0:03:00.2]} 5...
Nf6 {[%clk 0:02:44.7]} 6. Nc3 {[%clk 0:02:59.4]} 6... O-O {[%clk 0:02:44.6]} 7.
d3 {[%clk 0:02:57.7]} 7... c5 {[%clk 0:02:38.6]} 8. Bd2 {[%clk 0:02:46]} 8... e6
{[%clk 0:02:34.2]} 9. Rc1 {[%clk 0:02:40.3]} 9... d5 {[%clk 0:02:18]} 10. cxd5
{[%clk 0:02:40.3]} 10... Nxd5 {[%clk 0:02:17.4]} 11. b3 {[%clk 0:02:37.8]} 11...
Nc6 {[%clk 0:02:15.9]} 12. Nxd5 {[%clk 0:02:26.3]} 12... Qxd5 {[%clk 0:02:15.7]}
13. Bc3 {[%clk 0:02:14.9]} 13... Nd4 {[%clk 0:02:13.4]} 14. Bxd4 {[%clk
0:01:59.7]} 14... Bxd4 {[%clk 0:02:01.4]} 15. Ne1 {[%clk 0:01:55.4]} 15... Qd7
{[%clk 0:02:00.2]} 16. Bxb7 {[%clk 0:01:53.2]} 16... Qxb7 {[%clk 0:02:01.1]} 17.
Qd2 {[%clk 0:01:52.7]} 17... Rfd8 {[%clk 0:01:58.4]} 18. Nf3 {[%clk 0:01:48.6]}
18... Bg7 {[%clk 0:01:56.9]} 19. b4 {[%clk 0:01:48.4]} 19... cxb4 {[%clk
0:01:52.1]} 20. Qxb4 {[%clk 0:01:49.3]} 20... Rac8 {[%clk 0:01:51.1]} 21. a4
{[%clk 0:01:40.3]} 21... h6 {[%clk 0:01:42]} 22. a5 {[%clk 0:01:38.2]} 22... b5
{[%clk 0:01:40.1]} 23. Nd2 {[%clk 0:01:25.8]} 23... a6 {[%clk 0:01:38.7]} 24.
Ne4 {[%clk 0:01:24.4]} 24... Bf8 {[%clk 0:01:25.2]} 25. Qb2 {[%clk 0:01:13.9]}
25... Be7 {[%clk 0:01:24.8]} 26. Qe5 {[%clk 0:01:06.3]} 26... Rd5 {[%clk
0:01:21.5]} 27. Qf4 {[%clk 0:00:53.8]} 27... b4 {[%clk 0:01:16.7]} 28. Rxc8+
{[%clk 0:00:46.4]} 28... Qxc8 {[%clk 0:01:16.7]} 29. Rc1 {[%clk 0:00:47.1]}
29... Qd8 {[%clk 0:01:16.9]} 30. Nd2 {[%clk 0:00:27.3]} 30... Rxa5 {[%clk
0:01:06.5]} 31. Nc4 {[%clk 0:00:20.3]} 31... Rb5 {[%clk 0:01:05.5]} 32. h4
{[%clk 0:00:19.3]} 32... h5 {[%clk 0:01:04.8]} 33. Ra1 {[%clk 0:00:15.6]} 33...
a5 {[%clk 0:01:03.9]} 34. Qe4 {[%clk 0:00:16.3]} 34... b3 {[%clk 0:01:02.4]} 35.
Qc6 {[%clk 0:00:14.6]} 35... b2 {[%clk 0:00:53.2]} 36. Rb1 {[%clk 0:00:13.3]}
36... Qb8 {[%clk 0:00:53.1]} 37. Kg2 {[%clk 0:00:04.9]} 37... a4 {[%clk
0:00:52.7]} 38. Nxb2 {[%clk 0:00:02.7]} 38... Rxb2 {[%clk 0:00:50.9]} 39. Rxb2
{[%clk 0:00:03.6]} 39... Qxb2 {[%clk 0:00:50.3]} 40. Qe8+ {[%clk 0:00:02.8]}
40... Kg7 {[%clk 0:00:46.1]} 41. Qxa4 {[%clk 0:00:03.7]} 41... Qxe2 {[%clk
0:00:45.7]} 42. Qd4+ {[%clk 0:00:02.3]} 42... Bf6 {[%clk 0:00:45.8]} 43. Qd7
{[%clk 0:00:02.2]} 43... Qb2 {[%clk 0:00:43.4]} 0-1

[Event "Early-Titled-Tuesday-Blitz-February-13-2024"]
[Site "Chess.com"]
[Date "2024.02.13"]
[Round "10"]
[White "sokidze"]
[Black "Karttunen"]
[Result "0-1"]
[WhiteElo "2806"]
[BlackElo "2645"]
[TimeControl "180+1"]
[EndTime "9:59:05 PST"]
[Termination "Karttunen won by checkmate"]

1. d4 {[%clk 0:03:00.9]} 1... d5 {[%clk 0:02:38.7]} 2. Nc3 {[%clk 0:02:59]} 2...
Nf6 {[%clk 0:02:35.6]} 3. Bf4 {[%clk 0:02:59.4]} 3... a6 {[%clk 0:02:35.5]} 4.
e3 {[%clk 0:02:59.1]} 4... e6 {[%clk 0:02:35.6]} 5. g4 {[%clk 0:02:58.7]} 5...
Bd6 {[%clk 0:02:28.6]} 6. Qf3 {[%clk 0:02:51.6]} 6... b5 {[%clk 0:02:20.6]} 7.
g5 {[%clk 0:02:39]} 7... Nfd7 {[%clk 0:02:12.8]} 8. Bxd6 {[%clk 0:02:19.2]} 8...
cxd6 {[%clk 0:02:12.6]} 9. Qg3 {[%clk 0:02:19.5]} 9... Nb6 {[%clk 0:02:10.5]}
10. Nf3 {[%clk 0:02:16.4]} 10... b4 {[%clk 0:01:58.5]} 11. Ne2 {[%clk
0:02:11.2]} 11... Nc4 {[%clk 0:01:54.4]} 12. O-O-O {[%clk 0:01:53.5]} 12... a5
{[%clk 0:01:49.9]} 13. Nf4 {[%clk 0:01:49.6]} 13... a4 {[%clk 0:01:43.8]} 14.
Kb1 {[%clk 0:01:18.8]} 14... Qc7 {[%clk 0:01:39.4]} 15. Bxc4 {[%clk 0:00:47.1]}
15... dxc4 {[%clk 0:01:37.5]} 16. Nh5 {[%clk 0:00:42.3]} 16... Rg8 {[%clk
0:01:25]} 17. Qf4 {[%clk 0:00:32.8]} 17... Bb7 {[%clk 0:01:18.6]} 18. e4 {[%clk
0:00:28.7]} 18... Nd7 {[%clk 0:01:07.2]} 19. Ng3 {[%clk 0:00:26.8]} 19... c3
{[%clk 0:00:56.3]} 20. Qe3 {[%clk 0:00:18.6]} 20... cxb2 {[%clk 0:00:54.1]} 21.
Kxb2 {[%clk 0:00:18.7]} 21... Nb6 {[%clk 0:00:54.4]} 22. Nd2 {[%clk 0:00:17.9]}
22... Rc8 {[%clk 0:00:49.8]} 23. Rc1 {[%clk 0:00:18]} 23... Qc3+ {[%clk
0:00:39]} 24. Kb1 {[%clk 0:00:18]} 24... Ba6 {[%clk 0:00:27]} 25. Qxc3 {[%clk
0:00:13]} 25... bxc3 {[%clk 0:00:26.9]} 26. Nf3 {[%clk 0:00:12.8]} 26... Nc4
{[%clk 0:00:26]} 27. Ka1 {[%clk 0:00:11.6]} 27... Na3 {[%clk 0:00:24.9]} 28.
Rhe1 {[%clk 0:00:06.6]} 28... Kd7 {[%clk 0:00:24.2]} 29. Re3 {[%clk 0:00:07.1]}
29... Rc7 {[%clk 0:00:24.1]} 30. Ne2 {[%clk 0:00:05]} 30... Bxe2 {[%clk
0:00:23.6]} 31. Rxe2 {[%clk 0:00:05.9]} 31... Rb8 {[%clk 0:00:24]} 32. Re3
{[%clk 0:00:01.7]} 32... Rcb7 {[%clk 0:00:23.7]} 33. Ree1 {[%clk 0:00:02.2]}
33... Rb2 {[%clk 0:00:23.6]} 34. d5 {[%clk 0:00:01.2]} 34... Rb1+ {[%clk
0:00:23.6]} 35. Rxb1 {[%clk 0:00:01.4]} 35... Nxc2# {[%clk 0:00:24]} 0-1

[Event "Early-Titled-Tuesday-Blitz-February-13-2024"]
[Site "Chess.com"]
[Date "2024.02.13"]
[Round "10"]
[White "lluiss"]
[Black "SHIVACalypso"]
[Result "0-1"]
[WhiteElo "2157"]
[BlackElo "2480"]
[TimeControl "180+1"]
[EndTime "9:59:06 PST"]
[Termination "SHIVACalypso won by resignation"]

1. e4 {[%clk 0:03:00.9]} 1... c5 {[%clk 0:02:51.2]} 2. Nf3 {[%clk 0:03:00.1]}
2... g6 {[%clk 0:02:45.8]} 3. d4 {[%clk 0:02:59.1]} 3... Bg7 {[%clk 0:02:46.7]}
4. Nc3 {[%clk 0:02:55.5]} 4... cxd4 {[%clk 0:02:46]} 5. Nxd4 {[%clk 0:02:55.5]}
5... Nc6 {[%clk 0:02:46.6]} 6. Nxc6 {[%clk 0:02:55.1]} 6... bxc6 {[%clk
0:02:47.5]} 7. Be2 {[%clk 0:02:55.1]} 7... Bb7 {[%clk 0:02:44.8]} 8. O-O {[%clk
0:02:54.9]} 8... d5 {[%clk 0:02:41.5]} 9. Na4 {[%clk 0:02:51.8]} 9... Nf6 {[%clk
0:02:35.1]} 10. Nc5 {[%clk 0:02:50.3]} 10... Qb6 {[%clk 0:02:32.2]} 11. Nxb7
{[%clk 0:02:47.1]} 11... Qxb7 {[%clk 0:02:31.3]} 12. exd5 {[%clk 0:02:43.4]}
12... cxd5 {[%clk 0:02:32.2]} 13. Bf3 {[%clk 0:02:43.7]} 13... O-O {[%clk
0:02:30.7]} 14. c4 {[%clk 0:02:43.8]} 14... Rfd8 {[%clk 0:02:26.6]} 15. Qe2
{[%clk 0:02:38]} 15... e6 {[%clk 0:02:19.7]} 16. Bg5 {[%clk 0:02:36.3]} 16...
Qc7 {[%clk 0:02:01.7]} 17. Bxf6 {[%clk 0:02:33.7]} 17... Bxf6 {[%clk 0:02:02.6]}
18. cxd5 {[%clk 0:02:33.8]} 18... exd5 {[%clk 0:02:03.5]} 19. Rad1 {[%clk
0:02:33.8]} 19... Rab8 {[%clk 0:01:56.3]} 20. b3 {[%clk 0:02:17]} 20... d4
{[%clk 0:01:48.2]} 21. Be4 {[%clk 0:02:13]} 21... Qa5 {[%clk 0:01:36.1]} 22. Qf3
{[%clk 0:01:48.3]} 22... Kg7 {[%clk 0:01:32.6]} 23. Rc1 {[%clk 0:01:22.1]} 23...
Qxa2 {[%clk 0:01:07.8]} 24. Bd5 {[%clk 0:01:05.1]} 24... Qa5 {[%clk 0:00:48.4]}
25. Bc4 {[%clk 0:01:03.5]} 25... d3 {[%clk 0:00:41]} 26. Rfd1 {[%clk 0:00:51.9]}
26... d2 {[%clk 0:00:38.8]} 27. Rc2 {[%clk 0:00:52]} 27... Rb6 {[%clk
0:00:24.5]} 28. h4 {[%clk 0:00:38.1]} 28... Rbd6 {[%clk 0:00:22.7]} 29. g4
{[%clk 0:00:25.2]} 29... Qe5 {[%clk 0:00:22.6]} 30. g5 {[%clk 0:00:23.3]} 30...
Qe1+ {[%clk 0:00:22.6]} 31. Kg2 {[%clk 0:00:23.6]} 31... Be5 {[%clk 0:00:21.3]}
32. Qxf7+ {[%clk 0:00:23.2]} 32... Kh8 {[%clk 0:00:21.6]} 33. Rcxd2 {[%clk
0:00:19.4]} 33... Qe4+ {[%clk 0:00:14.6]} 34. f3 {[%clk 0:00:14]} 34... Rxd2+
{[%clk 0:00:11.7]} 0-1

[Event "Early-Titled-Tuesday-Blitz-February-13-2024"]
[Site "Chess.com"]
[Date "2024.02.13"]
[Round "10"]
[White "SlavenPastar"]
[Black "Brahianzevich"]
[Result "0-1"]
[WhiteElo "2597"]
[BlackElo "2475"]
[TimeControl "180+1"]
[EndTime "9:59:09 PST"]
[Termination "Brahianzevich won by checkmate"]

1. b3 {[%clk 0:03:00.9]} 1... d5 {[%clk 0:02:53]} 2. Bb2 {[%clk 0:03:00]} 2...
e6 {[%clk 0:02:52.7]} 3. Nf3 {[%clk 0:03:00.2]} 3... Nf6 {[%clk 0:02:53.3]} 4.
e3 {[%clk 0:03:00.8]} 4... Be7 {[%clk 0:02:53.8]} 5. c4 {[%clk 0:03:01.5]} 5...
O-O {[%clk 0:02:54]} 6. cxd5 {[%clk 0:03:01.7]} 6... Nxd5 {[%clk 0:02:51]} 7.
Be2 {[%clk 0:03:02.1]} 7... b6 {[%clk 0:02:49.3]} 8. O-O {[%clk 0:03:01.9]} 8...
Bb7 {[%clk 0:02:49.3]} 9. d3 {[%clk 0:03:02.2]} 9... c5 {[%clk 0:02:48.4]} 10.
Nbd2 {[%clk 0:03:02.6]} 10... Bf6 {[%clk 0:02:44]} 11. d4 {[%clk 0:02:56]} 11...
Nc6 {[%clk 0:02:41.5]} 12. Rc1 {[%clk 0:02:53.6]} 12... cxd4 {[%clk 0:02:38.4]}
13. exd4 {[%clk 0:02:49.4]} 13... Nf4 {[%clk 0:02:31.5]} 14. Ne4 {[%clk
0:02:38.4]} 14... Nxe2+ {[%clk 0:02:28.3]} 15. Qxe2 {[%clk 0:02:38.9]} 15... Nb4
{[%clk 0:01:52.2]} 16. Rfd1 {[%clk 0:01:53.3]} 16... Nxa2 {[%clk 0:01:13.1]} 17.
Nxf6+ {[%clk 0:01:50.4]} 17... gxf6 {[%clk 0:01:10.3]} 18. Rc4 {[%clk
0:00:54.3]} 18... Rc8 {[%clk 0:00:20.7]} 19. Ra1 {[%clk 0:00:29]} 19... Ba6
{[%clk 0:00:18.7]} 20. Rxc8 {[%clk 0:00:24.5]} 20... Qxc8 {[%clk 0:00:19]} 21.
Qd2 {[%clk 0:00:20.7]} 21... Qc6 {[%clk 0:00:16]} 22. Rxa2 {[%clk 0:00:19.5]}
22... Bb7 {[%clk 0:00:16.4]} 23. Ra1 {[%clk 0:00:17.5]} 23... Qd5 {[%clk
0:00:15.7]} 24. Qe3 {[%clk 0:00:11.9]} 24... Kh8 {[%clk 0:00:15.6]} 25. Rc1
{[%clk 0:00:07.9]} 25... Rg8 {[%clk 0:00:15.8]} 26. Kf1 {[%clk 0:00:07.5]} 26...
Ba6+ {[%clk 0:00:12.8]} 27. Kg1 {[%clk 0:00:07.7]} 27... Bb7 {[%clk 0:00:12.9]}
28. Kh1 {[%clk 0:00:08.3]} 28... Qh5 {[%clk 0:00:12.7]} 29. Rc7 {[%clk
0:00:07.1]} 29... Bd5 {[%clk 0:00:09.7]} 30. Bc1 {[%clk 0:00:03.6]} 30... Qg6
{[%clk 0:00:09.5]} 31. Bd2 {[%clk 0:00:03.2]} 31... Qxg2# {[%clk 0:00:09.2]} 0-1

[Event "Early-Titled-Tuesday-Blitz-February-13-2024"]
[Site "Chess.com"]
[Date "2024.02.13"]
[Round "10"]
[White "Al_Shima"]
[Black "Alblooshi_Hamad"]
[Result "1-0"]
[WhiteElo "2372"]
[BlackElo "2245"]
[TimeControl "180+1"]
[EndTime "9:59:11 PST"]
[Termination "Al_Shima won by resignation"]

1. e4 {[%clk 0:02:53.2]} 1... e5 {[%clk 0:02:58.3]} 2. Bc4 {[%clk 0:02:52.3]}
2... Bc5 {[%clk 0:02:57.7]} 3. Nc3 {[%clk 0:02:51.7]} 3... Nc6 {[%clk
0:02:55.8]} 4. Qg4 {[%clk 0:02:51.9]} 4... g6 {[%clk 0:02:29.8]} 5. Qg3 {[%clk
0:02:49.7]} 5... d6 {[%clk 0:02:26.4]} 6. Nge2 {[%clk 0:02:46.2]} 6... Be6
{[%clk 0:02:19.7]} 7. d3 {[%clk 0:02:43.7]} 7... Bxc4 {[%clk 0:01:54.7]} 8. dxc4
{[%clk 0:02:41.5]} 8... Nb4 {[%clk 0:01:55.3]} 9. O-O {[%clk 0:02:34.9]} 9...
Nxc2 {[%clk 0:01:52.2]} 10. Rb1 {[%clk 0:02:35.2]} 10... Nd4 {[%clk 0:01:52.4]}
11. Bg5 {[%clk 0:02:20.1]} 11... Qd7 {[%clk 0:01:50]} 12. Nxd4 {[%clk
0:02:17.8]} 12... Bxd4 {[%clk 0:01:50.1]} 13. Nd5 {[%clk 0:02:18]} 13... c6
{[%clk 0:01:31.3]} 14. Nf6+ {[%clk 0:01:59.4]} 14... Nxf6 {[%clk 0:01:30.1]} 15.
Bxf6 {[%clk 0:02:00.3]} 15... Rg8 {[%clk 0:01:28.5]} 16. Kh1 {[%clk 0:01:56.2]}
16... Qe6 {[%clk 0:01:27.9]} 17. Qh4 {[%clk 0:01:54.7]} 17... h6 {[%clk
0:01:22.7]} 18. f4 {[%clk 0:01:46.3]} 18... g5 {[%clk 0:00:55]} 19. fxg5 {[%clk
0:01:45]} 19... hxg5 {[%clk 0:00:55.3]} 20. Qh7 {[%clk 0:01:43.1]} 20... Kd7
{[%clk 0:00:55.3]} 21. Bxg5 {[%clk 0:01:31.5]} 21... Raf8 {[%clk 0:00:39.2]} 22.
Rf6 {[%clk 0:00:47.9]} 22... Qe8 {[%clk 0:00:21.9]} 23. Bh6 {[%clk 0:00:21.1]}
23... Rh8 {[%clk 0:00:20.1]} 24. Qf5+ {[%clk 0:00:21.4]} 24... Kc7 {[%clk
0:00:18.5]} 25. Bxf8 {[%clk 0:00:21]} 25... Qxf8 {[%clk 0:00:17.2]} 26. Rxf7+
{[%clk 0:00:17.7]} 26... Qxf7 {[%clk 0:00:16.3]} 27. Qxf7+ {[%clk 0:00:18.6]}
27... Kb6 {[%clk 0:00:17.2]} 28. b4 {[%clk 0:00:17.3]} 28... a6 {[%clk
0:00:17.1]} 29. a4 {[%clk 0:00:15.9]} 29... Be3 {[%clk 0:00:14.6]} 30. a5+
{[%clk 0:00:12.3]} 30... Ka7 {[%clk 0:00:14.7]} 31. h3 {[%clk 0:00:10.2]} 31...
Rh4 {[%clk 0:00:13.5]} 32. b5 {[%clk 0:00:09.3]} 32... axb5 {[%clk 0:00:11.1]}
33. cxb5 {[%clk 0:00:09.6]} 33... Rxe4 {[%clk 0:00:10.7]} 34. bxc6 {[%clk
0:00:09.7]} 1-0